[Event "Titled Tuesday Blitz June 13 Early 2023"]
[White "Lehtosaari, Mauri"]
[Black "Gomez Barrera, Javiera Belen"]
[WhiteFideId "501999"]
[BlackFideId "3418723"]
[WhiteElo "2542"]
[BlackElo "2119"]
[Result "0-1"]
[Round "10"]
[TimeControl "180+2"]
[Date "2023.06.13"]
[WhiteClock "0:00:21"]
[BlackClock "0:00:03"]
[Board "100"]

1. d4 {[%clk 0:03:00]}  d5 {[%clk 0:02:57]} 2. Nf3 {[%clk 0:02:59]}  Nf6 {[%clk 0:02:57]} 3. Bg5 {[%clk 0:02:58]}  e6 {[%clk 0:02:58]} 4. e3 {[%clk 0:02:58]}  Be7 {[%clk 0:02:58]} 5. Bd3 {[%clk 0:02:58]}  c5 {[%clk 0:02:54]} 6. c3 {[%clk 0:02:58]}  Nc6 {[%clk 0:02:51]} 7. Nbd2 {[%clk 0:02:58]}  cxd4 {[%clk 0:02:50]} 8. exd4 {[%clk 0:02:58]}  h6 {[%clk 0:02:51]} 9. Bh4 {[%clk 0:02:57]}  Qb6 {[%clk 0:02:28]} 10. Rb1 {[%clk 0:02:56]}  Bd7 {[%clk 0:02:26]} 11. O-O {[%clk 0:02:51]}  g5 {[%clk 0:02:22]} 12. Bg3 {[%clk 0:02:51]}  O-O-O {[%clk 0:02:16]} 13. a4 {[%clk 0:02:08]}  Rdg8 {[%clk 0:02:10]} 14. b4 {[%clk 0:02:06]}  h5 {[%clk 0:02:10]} 15. a5 {[%clk 0:02:05]}  Qd8 {[%clk 0:02:10]} 16. Nb3 {[%clk 0:02:04]}  h4 {[%clk 0:02:08]} 17. Be5 {[%clk 0:02:03]}  g4 {[%clk 0:02:06]} 18. Nfd2 {[%clk 0:02:01]}  Nxe5 {[%clk 0:02:00]} 19. dxe5 {[%clk 0:02:02]}  Nh5 {[%clk 0:02:01]} 20. c4 {[%clk 0:01:56]}  Nf4 {[%clk 0:01:51]} 21. Qc2 {[%clk 0:01:53]}  Kb8 {[%clk 0:01:34]} 22. c5 {[%clk 0:01:53]}  Qc7 {[%clk 0:01:10]} 23. b5 {[%clk 0:01:41]}  Qxe5 {[%clk 0:01:09]} 24. c6 {[%clk 0:01:31]}  Bc8 {[%clk 0:01:09]} 25. Rfc1 {[%clk 0:01:23]}  g3 {[%clk 0:01:06]} 26. cxb7 {[%clk 0:01:11]}  Bxb7 {[%clk 0:01:04]} 27. Nf3 {[%clk 0:01:08]}  gxh2+ {[%clk 0:01:03]} 28. Kh1 {[%clk 0:01:07]}  Qd6 {[%clk 0:00:54]} 29. a6 {[%clk 0:01:00]}  Rc8 {[%clk 0:00:20]} 30. Qd2 {[%clk 0:00:55]}  Rxc1+ {[%clk 0:00:20]} 31. Rxc1 {[%clk 0:00:55]}  Ba8 {[%clk 0:00:20]} 32. Na5 {[%clk 0:00:53]}  Qb4 {[%clk 0:00:15]} 33. Qxf4+ {[%clk 0:00:48]}  Qxf4 {[%clk 0:00:14]} 34. Rd1 {[%clk 0:00:36]}  Bc5 {[%clk 0:00:13]} 35. Nb3 {[%clk 0:00:28]}  Bb6 {[%clk 0:00:13]} 36. Nbd2 {[%clk 0:00:27]}  Rg8 {[%clk 0:00:09]} 37. Bf1 {[%clk 0:00:26]}  Bxf2 {[%clk 0:00:09]} 38. Nb3 {[%clk 0:00:24]}  Bb6 {[%clk 0:00:09]} 39. Nc1 {[%clk 0:00:24]}  d4 {[%clk 0:00:10]} 40. Nd3 {[%clk 0:00:23]}  Qf6 {[%clk 0:00:07]} 41. Nde5 {[%clk 0:00:24]}  Qd8 {[%clk 0:00:02]} 42. Nxf7 {[%clk 0:00:23]}  Qf6 {[%clk 0:00:02]} 43. N7e5 {[%clk 0:00:24]}  Rd8 {[%clk 0:00:02]} 44. Ng4 {[%clk 0:00:23]}  Qf4 {[%clk 0:00:02]} 45. Nge5 {[%clk 0:00:24]}  h3 {[%clk 0:00:02]} 46. Be2 {[%clk 0:00:23]}  Bc7 {[%clk 0:00:01]} 47. b6 {[%clk 0:00:22]}  Bxe5 {[%clk 0:00:01]} 48. bxa7+ {[%clk 0:00:23]}  Kxa7 {[%clk 0:00:02]} 49. Nxe5 {[%clk 0:00:21]}  Qxe5 {[%clk 0:00:03]} 50. Bf3 {[%clk 0:00:21]}  hxg2+ {[%clk 0:00:02]} 51. Kxg2 {[%clk 0:00:21]}  Qe2+ {[%clk 0:00:02]} 52. Kh1 {[%clk 0:00:20]}  Qxf3+ {[%clk 0:00:03]} 53. Kxh2 {[%clk 0:00:21]}  Qg2# {[%clk 0:00:03]} 0-1


[Site "https://www.chess.com"]

[Event "Titled Tuesday Blitz June 13 Early 2023"]
[White "cristianserban1"]
[Black "Miller, Luke C"]
[BlackFideId "2096935"]
[WhiteElo "2510"]
[BlackElo "1836"]
[Result "0-1"]
[Round "10"]
[TimeControl "180+2"]
[Date "2023.06.13"]
[WhiteClock "0:02:27"]
[BlackClock "0:02:31"]
[Board "103"]

1. Nf3 {[%clk 0:02:57]}  Nf6 {[%clk 0:02:57]} 2. b3 {[%clk 0:02:57]}  g6 {[%clk 0:02:57]} 3. Bb2 {[%clk 0:02:57]}  Bg7 {[%clk 0:02:58]} 4. g3 {[%clk 0:02:58]}  O-O {[%clk 0:02:58]} 5. Bg2 {[%clk 0:02:58]}  c5 {[%clk 0:02:57]} 6. O-O {[%clk 0:02:59]}  Nc6 {[%clk 0:02:57]} 7. e3 {[%clk 0:02:54]}  d5 {[%clk 0:02:53]} 8. d4 {[%clk 0:02:54]}  Ne4 {[%clk 0:02:52]} 9. Nbd2 {[%clk 0:02:52]}  cxd4 {[%clk 0:02:51]} 10. Nxd4 {[%clk 0:02:50]}  Nxd4 {[%clk 0:02:45]} 11. Nxe4 {[%clk 0:02:38]}  Nf3+ {[%clk 0:02:35]} 12. Bxf3 {[%clk 0:02:38]}  Bxb2 {[%clk 0:02:34]} 13. Rb1 {[%clk 0:02:27]}  dxe4 {[%clk 0:02:31]} 0-1


[Site "https://www.chess.com"]

[Event "Titled Tuesday Blitz June 13 Early 2023"]
[White "Horak, Martin"]
[Black "Torres Hernandez, Leslie Carolin"]
[WhiteFideId "367095"]
[BlackFideId "8400504"]
[WhiteElo "2091"]
[BlackElo "1920"]
[Result "1-0"]
[Round "10"]
[TimeControl "180+2"]
[Date "2023.06.13"]
[WhiteClock "0:00:43"]
[BlackClock "0:00:03"]
[Board "104"]

1. e4 {[%clk 0:03:00]}  e6 {[%clk 0:02:45]} 2. Nf3 {[%clk 0:02:58]}  d5 {[%clk 0:02:28]} 3. e5 {[%clk 0:02:58]}  c5 {[%clk 0:02:27]} 4. b4 {[%clk 0:02:59]}  cxb4 {[%clk 0:02:27]} 5. a3 {[%clk 0:02:59]}  bxa3 {[%clk 0:02:26]} 6. d4 {[%clk 0:02:59]}  Nc6 {[%clk 0:02:25]} 7. c3 {[%clk 0:03:00]}  Nge7 {[%clk 0:02:25]} 8. Bd3 {[%clk 0:03:00]}  Nf5 {[%clk 0:02:26]} 9. O-O {[%clk 0:02:59]}  Be7 {[%clk 0:02:26]} 10. Nxa3 {[%clk 0:02:54]}  O-O {[%clk 0:02:26]} 11. g4 {[%clk 0:02:54]}  Nh4 {[%clk 0:02:26]} 12. Nxh4 {[%clk 0:02:54]}  Bxh4 {[%clk 0:02:26]} 13. f4 {[%clk 0:02:49]}  f6 {[%clk 0:02:20]} 14. g5 {[%clk 0:02:40]}  fxg5 {[%clk 0:02:18]} 15. Qh5 {[%clk 0:02:28]}  g6 {[%clk 0:01:49]} 16. Qh6 {[%clk 0:02:28]}  Ne7 {[%clk 0:01:26]} 17. fxg5 {[%clk 0:02:22]}  Rxf1+ {[%clk 0:01:25]} 18. Kxf1 {[%clk 0:02:15]}  Qf8+ {[%clk 0:01:14]} 19. Qxf8+ {[%clk 0:02:15]}  Kxf8 {[%clk 0:01:15]} 20. Kg2 {[%clk 0:02:12]}  Be1 {[%clk 0:01:13]} 21. Nb5 {[%clk 0:02:05]}  Bd7 {[%clk 0:01:05]} 22. Ba3 {[%clk 0:01:49]}  Bxb5 {[%clk 0:00:54]} 23. Bxb5 {[%clk 0:01:48]}  Bxc3 {[%clk 0:00:54]} 24. Rf1+ {[%clk 0:01:47]}  Kg7 {[%clk 0:00:48]} 25. Bxe7 {[%clk 0:01:48]}  Bxd4 {[%clk 0:00:46]} 26. Bf6+ {[%clk 0:01:46]}  Kf7 {[%clk 0:00:40]} 27. h4 {[%clk 0:01:34]}  Rc8 {[%clk 0:00:37]} 28. h5 {[%clk 0:01:25]}  Rc2+ {[%clk 0:00:36]} 29. Kf3 {[%clk 0:01:22]}  gxh5 {[%clk 0:00:23]} 30. Bd3 {[%clk 0:01:04]}  Rc3 {[%clk 0:00:22]} 31. Ke2 {[%clk 0:01:05]}  Ra3 {[%clk 0:00:18]} 32. Bxh7 {[%clk 0:01:03]}  Re3+ {[%clk 0:00:18]} 33. Kd2 {[%clk 0:01:02]}  Rg3 {[%clk 0:00:15]} 34. g6+ {[%clk 0:00:45]}  Ke8 {[%clk 0:00:15]} 35. g7 {[%clk 0:00:43]}  Be3+ {[%clk 0:00:15]} 36. Ke2 {[%clk 0:00:42]}  Kf7 {[%clk 0:00:05]} 37. g8=Q+ {[%clk 0:00:42]}  Rxg8 {[%clk 0:00:05]} 38. Bxg8+ {[%clk 0:00:43]}  Kxg8 {[%clk 0:00:03]} 39. Kxe3 {[%clk 0:00:43]} 1-0


[Site "https://www.chess.com"]

[Event "Titled Tuesday Blitz June 13 Early 2023"]
[White "Peycheva, Gergana"]
[Black "Nikologorsky, Matfei"]
[WhiteFideId "2916711"]
[BlackFideId "24102474"]
[WhiteElo "2216"]
[BlackElo "2153"]
[Result "1-0"]
[Round "10"]
[TimeControl "180+2"]
[Date "2023.06.13"]
[WhiteClock "0:00:22"]
[BlackClock "0:00:20"]
[Board "106"]

1. d4 {[%clk 0:03:00]}  Nf6 {[%clk 0:02:55]} 2. c4 {[%clk 0:03:01]}  e6 {[%clk 0:02:55]} 3. Nc3 {[%clk 0:03:01]}  Bb4 {[%clk 0:02:56]} 4. Qc2 {[%clk 0:03:01]}  d5 {[%clk 0:02:54]} 5. cxd5 {[%clk 0:03:00]}  exd5 {[%clk 0:02:53]} 6. Nf3 {[%clk 0:02:57]}  O-O {[%clk 0:02:49]} 7. Bg5 {[%clk 0:02:56]}  c6 {[%clk 0:02:45]} 8. e3 {[%clk 0:02:55]}  h6 {[%clk 0:02:44]} 9. Bh4 {[%clk 0:02:55]}  Bg4 {[%clk 0:02:40]} 10. Ne5 {[%clk 0:02:53]}  Bc8 {[%clk 0:02:30]} 11. Bd3 {[%clk 0:02:52]}  Nbd7 {[%clk 0:02:29]} 12. O-O {[%clk 0:02:47]}  Be7 {[%clk 0:02:28]} 13. a3 {[%clk 0:02:33]}  Nxe5 {[%clk 0:02:26]} 14. dxe5 {[%clk 0:02:33]}  Nd7 {[%clk 0:02:27]} 15. Bg3 {[%clk 0:02:33]}  Nc5 {[%clk 0:02:20]} 16. Bh7+ {[%clk 0:02:31]}  Kh8 {[%clk 0:02:20]} 17. b4 {[%clk 0:02:31]}  Ne6 {[%clk 0:02:06]} 18. Rad1 {[%clk 0:02:29]}  Qe8 {[%clk 0:01:53]} 19. Bd3 {[%clk 0:02:20]}  a5 {[%clk 0:01:50]} 20. Rb1 {[%clk 0:01:49]}  axb4 {[%clk 0:01:48]} 21. axb4 {[%clk 0:01:50]}  Qd8 {[%clk 0:01:33]} 22. f4 {[%clk 0:01:47]}  d4 {[%clk 0:01:32]} 23. exd4 {[%clk 0:01:41]}  Nxd4 {[%clk 0:01:31]} 24. Qb2 {[%clk 0:01:33]}  Nf5 {[%clk 0:01:15]} 25. Be4 {[%clk 0:01:18]}  Nxg3 {[%clk 0:01:08]} 26. hxg3 {[%clk 0:01:18]}  Qd4+ {[%clk 0:01:09]} 27. Kh2 {[%clk 0:01:17]}  Be6 {[%clk 0:01:03]} 28. Rfd1 {[%clk 0:01:00]}  Qb6 {[%clk 0:00:55]} 29. f5 {[%clk 0:00:59]}  Bc4 {[%clk 0:00:51]} 30. f6 {[%clk 0:00:56]}  gxf6 {[%clk 0:00:47]} 31. Qd2 {[%clk 0:00:56]}  Kg7 {[%clk 0:00:41]} 32. Qf4 {[%clk 0:00:43]}  fxe5 {[%clk 0:00:39]} 33. Qxe5+ {[%clk 0:00:44]}  Bf6 {[%clk 0:00:39]} 34. Qf5 {[%clk 0:00:44]}  Bxc3 {[%clk 0:00:33]} 35. Qh7+ {[%clk 0:00:42]}  Kf6 {[%clk 0:00:33]} 36. Qxh6+ {[%clk 0:00:23]}  Ke5 {[%clk 0:00:20]} 37. Qd6+ {[%clk 0:00:22]}  Kxe4 {[%clk 0:00:20]} 38. Qf4# {[%clk 0:00:22]} 1-0


[Site "https://www.chess.com"]

[Event "Titled Tuesday Blitz June 13 Early 2023"]
[White "Rodchenkov, Sergey D."]
[Black "FREDERICKtheMATE"]
[WhiteFideId "4168712"]
[WhiteElo "2277"]
[BlackElo "2378"]
[Result "1-0"]
[Round "10"]
[TimeControl "180+2"]
[Date "2023.06.13"]
[WhiteClock "0:00:15"]
[BlackClock "0:00:16"]
[Board "108"]

1. e4 {[%clk 0:03:00]}  c5 {[%clk 0:02:59]} 2. Nf3 {[%clk 0:03:00]}  Nc6 {[%clk 0:02:59]} 3. d4 {[%clk 0:03:01]}  cxd4 {[%clk 0:02:59]} 4. Nxd4 {[%clk 0:03:02]}  Nf6 {[%clk 0:02:59]} 5. Nc3 {[%clk 0:03:02]}  e5 {[%clk 0:02:59]} 6. Ndb5 {[%clk 0:03:03]}  d6 {[%clk 0:03:00]} 7. Nd5 {[%clk 0:03:03]}  Nxd5 {[%clk 0:02:59]} 8. exd5 {[%clk 0:03:04]}  Nb8 {[%clk 0:02:58]} 9. c4 {[%clk 0:03:04]}  Be7 {[%clk 0:02:57]} 10. Be2 {[%clk 0:03:05]}  O-O {[%clk 0:02:57]} 11. O-O {[%clk 0:03:06]}  a6 {[%clk 0:02:56]} 12. Nc3 {[%clk 0:03:06]}  f5 {[%clk 0:02:56]} 13. f4 {[%clk 0:03:07]}  Bf6 {[%clk 0:02:55]} 14. Kh1 {[%clk 0:03:06]}  Nd7 {[%clk 0:02:54]} 15. a4 {[%clk 0:03:01]}  a5 {[%clk 0:02:54]} 16. Nb5 {[%clk 0:03:00]}  Nc5 {[%clk 0:02:53]} 17. Be3 {[%clk 0:02:58]}  b6 {[%clk 0:02:53]} 18. Rb1 {[%clk 0:02:56]}  Re8 {[%clk 0:02:40]} 19. fxe5 {[%clk 0:02:56]}  Bxe5 {[%clk 0:02:38]} 20. Bg1 {[%clk 0:02:52]}  Bd7 {[%clk 0:02:32]} 21. Nd4 {[%clk 0:02:51]}  Qg5 {[%clk 0:02:25]} 22. Nf3 {[%clk 0:02:49]}  Qe7 {[%clk 0:02:20]} 23. b3 {[%clk 0:02:47]}  Rad8 {[%clk 0:02:12]} 24. Bd3 {[%clk 0:02:43]}  g6 {[%clk 0:02:11]} 25. Bc2 {[%clk 0:02:42]}  Bg7 {[%clk 0:02:05]} 26. b4 {[%clk 0:02:15]}  axb4 {[%clk 0:02:04]} 27. Rxb4 {[%clk 0:02:16]}  Rb8 {[%clk 0:02:03]} 28. Nd4 {[%clk 0:02:14]}  Qh4 {[%clk 0:01:59]} 29. Nc6 {[%clk 0:02:09]}  Bxc6 {[%clk 0:01:56]} 30. dxc6 {[%clk 0:02:10]}  Be5 {[%clk 0:01:56]} 31. h3 {[%clk 0:01:40]}  Kg7 {[%clk 0:01:47]} 32. Qf3 {[%clk 0:01:29]}  Na6 {[%clk 0:01:37]} 33. Rb5 {[%clk 0:01:17]}  Qxc4 {[%clk 0:01:34]} 34. Bb3 {[%clk 0:01:10]}  Qh4 {[%clk 0:01:25]} 35. Rxb6 {[%clk 0:01:08]}  Nc5 {[%clk 0:01:11]} 36. a5 {[%clk 0:00:59]}  Qe7 {[%clk 0:00:55]} 37. Bxc5 {[%clk 0:00:47]}  dxc5 {[%clk 0:00:55]} 38. Rd1 {[%clk 0:00:48]}  Bd4 {[%clk 0:00:35]} 39. Rb1 {[%clk 0:00:37]}  Qa7 {[%clk 0:00:19]} 40. Bc4 {[%clk 0:00:30]}  Qxa5 {[%clk 0:00:17]} 41. Rxb8 {[%clk 0:00:20]}  Re1+ {[%clk 0:00:16]} 42. Rxe1 {[%clk 0:00:17]}  Qxe1+ {[%clk 0:00:15]} 43. Qf1 {[%clk 0:00:18]}  Qe5 {[%clk 0:00:14]} 44. Rb7+ {[%clk 0:00:18]}  Kh6 {[%clk 0:00:15]} 45. c7 {[%clk 0:00:15]}  Qg3 {[%clk 0:00:13]} 46. c8=Q {[%clk 0:00:11]}  Be5 {[%clk 0:00:13]} 47. Qf8+ {[%clk 0:00:12]}  Kg5 {[%clk 0:00:10]} 48. Qe7+ {[%clk 0:00:08]}  Kh5 {[%clk 0:00:10]} 49. Be2+ {[%clk 0:00:07]}  Kh6 {[%clk 0:00:09]} 50. Qxe5 {[%clk 0:00:05]}  Qxe5 {[%clk 0:00:08]} 51. Rb1 {[%clk 0:00:06]}  Qd4 {[%clk 0:00:08]} 52. Rd1 {[%clk 0:00:06]}  Qe4 {[%clk 0:00:09]} 53. Qf3 {[%clk 0:00:06]}  Qe5 {[%clk 0:00:09]} 54. Bf1 {[%clk 0:00:06]}  c4 {[%clk 0:00:08]} 55. Qf2 {[%clk 0:00:05]}  c3 {[%clk 0:00:08]} 56. Re1 {[%clk 0:00:06]}  Qa5 {[%clk 0:00:07]} 57. Qe3+ {[%clk 0:00:07]}  Kg7 {[%clk 0:00:07]} 58. Rc1 {[%clk 0:00:07]}  Qa3 {[%clk 0:00:06]} 59. Qxc3+ {[%clk 0:00:07]}  Qxc3 {[%clk 0:00:06]} 60. Rxc3 {[%clk 0:00:08]}  Kf6 {[%clk 0:00:07]} 61. g3 {[%clk 0:00:09]}  Kg5 {[%clk 0:00:08]} 62. Kg2 {[%clk 0:00:09]}  h5 {[%clk 0:00:09]} 63. h4+ {[%clk 0:00:10]}  Kf6 {[%clk 0:00:08]} 64. Be2 {[%clk 0:00:10]}  Kg7 {[%clk 0:00:09]} 65. Rc6 {[%clk 0:00:11]}  Kh6 {[%clk 0:00:10]} 66. Bf3 {[%clk 0:00:12]}  Kg7 {[%clk 0:00:11]} 67. Bxh5 {[%clk 0:00:11]}  Kf7 {[%clk 0:00:12]} 68. Kf3 {[%clk 0:00:12]}  Kg7 {[%clk 0:00:12]} 69. Rxg6+ {[%clk 0:00:12]}  Kh7 {[%clk 0:00:12]} 70. Kf4 {[%clk 0:00:12]}  Kh8 {[%clk 0:00:13]} 71. Kxf5 {[%clk 0:00:13]}  Kh7 {[%clk 0:00:13]} 72. Kf6 {[%clk 0:00:13]}  Kh8 {[%clk 0:00:14]} 73. Kf7 {[%clk 0:00:14]}  Kh7 {[%clk 0:00:15]} 74. Rf6 {[%clk 0:00:14]}  Kh8 {[%clk 0:00:16]} 75. Rh6# {[%clk 0:00:15]} 1-0


[Site "https://www.chess.com"]

[Event "Titled Tuesday Blitz June 13 Early 2023"]
[White "Santos Flores, Alberto"]
[Black "Corredor Castellanos, Camilo"]
[WhiteFideId "3601234"]
[BlackFideId "4425871"]
[WhiteElo "2235"]
[BlackElo "1994"]
[Result "0-1"]
[Round "10"]
[TimeControl "180+2"]
[Date "2023.06.13"]
[WhiteClock "0:00:07"]
[BlackClock "0:00:57"]
[Board "109"]

1. e4 {[%clk 0:03:00]}  e5 {[%clk 0:02:59]} 2. Nf3 {[%clk 0:03:01]}  Nc6 {[%clk 0:02:59]} 3. Bc4 {[%clk 0:03:01]}  Bc5 {[%clk 0:02:58]} 4. c3 {[%clk 0:03:01]}  Nf6 {[%clk 0:02:54]} 5. d3 {[%clk 0:03:00]}  d6 {[%clk 0:02:51]} 6. Nbd2 {[%clk 0:02:57]}  a6 {[%clk 0:02:49]} 7. a4 {[%clk 0:02:56]}  O-O {[%clk 0:02:49]} 8. O-O {[%clk 0:02:56]}  h6 {[%clk 0:02:42]} 9. h3 {[%clk 0:02:56]}  Kh8 {[%clk 0:02:40]} 10. Re1 {[%clk 0:02:55]}  Nh7 {[%clk 0:02:36]} 11. Nf1 {[%clk 0:02:53]}  f5 {[%clk 0:02:35]} 12. exf5 {[%clk 0:02:43]}  Bxf5 {[%clk 0:02:29]} 13. Ng3 {[%clk 0:02:43]}  Bxh3 {[%clk 0:02:09]} 14. gxh3 {[%clk 0:02:42]}  Qf6 {[%clk 0:02:09]} 15. Kg2 {[%clk 0:02:39]}  Ng5 {[%clk 0:02:05]} 16. Bxg5 {[%clk 0:02:38]}  hxg5 {[%clk 0:02:03]} 17. Ne4 {[%clk 0:02:25]}  Qf4 {[%clk 0:02:00]} 18. Nexg5 {[%clk 0:02:20]}  Rf5 {[%clk 0:01:54]} 19. Ne6 {[%clk 0:02:07]}  Qh6 {[%clk 0:01:46]} 20. Nxc5 {[%clk 0:02:06]}  dxc5 {[%clk 0:01:47]} 21. Bd5 {[%clk 0:02:01]}  Raf8 {[%clk 0:01:46]} 22. Be4 {[%clk 0:02:00]}  Rf4 {[%clk 0:01:42]} 23. Rg1 {[%clk 0:01:53]}  Ne7 {[%clk 0:01:41]} 24. Kf1 {[%clk 0:01:49]}  Nf5 {[%clk 0:01:27]} 25. Ke2 {[%clk 0:01:42]}  Nd6 {[%clk 0:01:18]} 26. Rg6 {[%clk 0:01:36]}  Qh5 {[%clk 0:01:11]} 27. Rg5 {[%clk 0:01:35]}  Qh6 {[%clk 0:01:11]} 28. Rg6 {[%clk 0:00:45]}  Rxe4+ {[%clk 0:01:09]} 29. dxe4 {[%clk 0:00:43]}  Qxg6 {[%clk 0:01:10]} 30. Qd5 {[%clk 0:00:40]}  Qh5 {[%clk 0:01:03]} 31. Qd3 {[%clk 0:00:40]}  Rf4 {[%clk 0:00:59]} 32. Rg1 {[%clk 0:00:07]}  c4 {[%clk 0:00:57]} 0-1


[Site "https://www.chess.com"]

[Event "Titled Tuesday Blitz June 13 Early 2023"]
[White "Sharapov, Evgeny"]
[Black "Bashirli, Saadat"]
[WhiteFideId "14103133"]
[BlackFideId "13429990"]
[WhiteElo "2367"]
[BlackElo "1408"]
[Result "1-0"]
[Round "10"]
[TimeControl "180+2"]
[Date "2023.06.13"]
[WhiteClock "0:01:16"]
[BlackClock "0:00:01"]
[Board "110"]

1. e4 {[%clk 0:02:59]}  c5 {[%clk 0:02:59]} 2. Nf3 {[%clk 0:02:59]}  g6 {[%clk 0:02:59]} 3. d4 {[%clk 0:02:59]}  cxd4 {[%clk 0:02:59]} 4. Nxd4 {[%clk 0:02:58]}  Nc6 {[%clk 0:02:58]} 5. c4 {[%clk 0:02:58]}  Nf6 {[%clk 0:02:56]} 6. Nc3 {[%clk 0:02:58]}  Nxd4 {[%clk 0:02:57]} 7. Qxd4 {[%clk 0:02:57]}  d6 {[%clk 0:02:57]} 8. Be2 {[%clk 0:02:57]}  Bg7 {[%clk 0:02:51]} 9. Be3 {[%clk 0:02:57]}  O-O {[%clk 0:02:50]} 10. Qd2 {[%clk 0:02:57]}  a5 {[%clk 0:02:48]} 11. O-O {[%clk 0:02:56]}  a4 {[%clk 0:02:46]} 12. Rac1 {[%clk 0:02:55]}  Qa5 {[%clk 0:02:43]} 13. f3 {[%clk 0:02:55]}  Be6 {[%clk 0:02:42]} 14. Rfd1 {[%clk 0:02:50]}  Rfc8 {[%clk 0:02:40]} 15. Nd5 {[%clk 0:02:45]}  Qxd2 {[%clk 0:02:34]} 16. Bxd2 {[%clk 0:02:45]}  Nxd5 {[%clk 0:02:22]} 17. exd5 {[%clk 0:02:45]}  Bf5 {[%clk 0:02:10]} 18. Bc3 {[%clk 0:02:45]}  Bh6 {[%clk 0:01:44]} 19. Ra1 {[%clk 0:02:44]}  a3 {[%clk 0:01:34]} 20. b3 {[%clk 0:02:41]}  b5 {[%clk 0:01:32]} 21. Bd4 {[%clk 0:02:37]}  bxc4 {[%clk 0:01:28]} 22. Bxc4 {[%clk 0:02:36]}  e5 {[%clk 0:01:22]} 23. dxe6 {[%clk 0:02:36]}  Bxe6 {[%clk 0:01:18]} 24. Bxe6 {[%clk 0:02:34]}  fxe6 {[%clk 0:01:18]} 25. Re1 {[%clk 0:02:23]}  Kf7 {[%clk 0:01:14]} 26. Kf2 {[%clk 0:02:14]}  Rc2+ {[%clk 0:01:11]} 27. Re2 {[%clk 0:02:14]}  Rac8 {[%clk 0:01:11]} 28. Re1 {[%clk 0:02:14]}  e5 {[%clk 0:01:09]} 29. Be3 {[%clk 0:02:12]}  Bxe3+ {[%clk 0:01:07]} 30. Kxe3 {[%clk 0:02:12]}  R8c3+ {[%clk 0:01:05]} 31. Kf2 {[%clk 0:02:09]}  Rb2 {[%clk 0:00:48]} 32. Rxb2 {[%clk 0:02:02]}  axb2 {[%clk 0:00:49]} 33. Rb1 {[%clk 0:02:02]}  Rc2+ {[%clk 0:00:50]} 34. Ke3 {[%clk 0:02:02]}  Rxg2 {[%clk 0:00:49]} 35. a4 {[%clk 0:01:58]}  Rxh2 {[%clk 0:00:42]} 36. a5 {[%clk 0:01:58]}  Rh4 {[%clk 0:00:36]} 37. Rxb2 {[%clk 0:01:56]}  Rb4 {[%clk 0:00:36]} 38. a6 {[%clk 0:01:55]}  Rb6 {[%clk 0:00:31]} 39. Ra2 {[%clk 0:01:50]}  Rxb3+ {[%clk 0:00:31]} 40. Kd2 {[%clk 0:01:46]}  Rb8 {[%clk 0:00:32]} 41. Kc3 {[%clk 0:01:45]}  h5 {[%clk 0:00:30]} 42. a7 {[%clk 0:01:44]}  Ra8 {[%clk 0:00:29]} 43. Kc4 {[%clk 0:01:45]}  Ke6 {[%clk 0:00:24]} 44. Kb5 {[%clk 0:01:45]}  Kf5 {[%clk 0:00:21]} 45. Kb6 {[%clk 0:01:45]}  Kf4 {[%clk 0:00:20]} 46. Rg2 {[%clk 0:01:33]}  g5 {[%clk 0:00:19]} 47. Kb7 {[%clk 0:01:33]}  Rxa7+ {[%clk 0:00:19]} 48. Kxa7 {[%clk 0:01:33]}  d5 {[%clk 0:00:18]} 49. Kb6 {[%clk 0:01:33]}  e4 {[%clk 0:00:18]} 50. fxe4 {[%clk 0:01:33]}  dxe4 {[%clk 0:00:19]} 51. Kc5 {[%clk 0:01:33]}  e3 {[%clk 0:00:19]} 52. Kd4 {[%clk 0:01:31]}  Kf3 {[%clk 0:00:16]} 53. Rxg5 {[%clk 0:01:31]}  e2 {[%clk 0:00:16]} 54. Rf5+ {[%clk 0:01:29]}  Kg4 {[%clk 0:00:12]} 55. Re5 {[%clk 0:01:28]}  Kf3 {[%clk 0:00:12]} 56. Kd3 {[%clk 0:01:28]}  h4 {[%clk 0:00:11]} 57. Re3+ {[%clk 0:01:28]}  Kf2 {[%clk 0:00:05]} 58. Rxe2+ {[%clk 0:01:27]}  Kg3 {[%clk 0:00:05]} 59. Re8 {[%clk 0:01:21]}  h3 {[%clk 0:00:05]} 60. Ke2 {[%clk 0:01:20]}  Kh2 {[%clk 0:00:03]} 61. Kf2 {[%clk 0:01:19]}  Kh1 {[%clk 0:00:03]} 62. Re3 {[%clk 0:01:16]}  Kh2 {[%clk 0:00:01]} 63. Rd3 {[%clk 0:01:16]}  Kh1 {[%clk 0:00:01]} 64. Rxh3# {[%clk 0:01:16]} 1-0


[Site "https://www.chess.com"]